[Event "FRA-ch Teams Top 16-B 2022"]
[Site "Chartres"]
[Date "2022.06.10"]
[Round "2.23"]
[White "Prodhomme, Boris"]
[Black "Sokolov, Andrei"]
[Result "0-1"]
[ECO "E46"]
[WhiteElo "2045"]
[BlackElo "2516"]
[Annotator "TA"]
[PlyCount "108"]
[EventDate "2022.06.09"]
[EventType "team-tourn"]
[EventCountry "FRA"]
[SourceTitle "playchess.com"]
[Source "ChessBase"]
[SourceQuality "1"]
[TimeControl "40/5400+30:1800+30"]

{[%evp 19,108,-7,4,4,45,18,36,31,47,37,52,58,91,73,69,79,69,69,69,66,81,81,102,89,118,104,123,109,117,100,125,120,103,81,154,106,126,120,216,204,200,192,220,-163,130,62,66,53,99,39,71,0,0,0,21,0,0,0,0,0,0,0,27,0,0,0,0,0,0,0,0,0,0,0,0,0,0,0,-5,-200,-181,-182,-181,-390,-351,-1114,-1089,-1114,-1052,-2252,-1670]} 1. d4 {[%emt 0:00:53]} Nf6 {[%emt 0:00:11]} 2. c4 {[%emt 0:00:03]} e6 {[%emt 0:00:09]} 3. Nc3 {[%emt 0:00:04]} Bb4 {[%emt 0:00:13]} 4. e3 {[%emt 0:00:07]} O-O {[%emt 0:00:55]} 5. Nge2 {[%emt 0:00:09]} d5 {[%emt 0:01:05]} 6. a3 {[%emt 0:00:08]} Be7 {[%emt 0:00:47]} 7. cxd5 {[%emt 0:00:07]} exd5 {[%emt 0:00:08]} 8. Nf4 {[%emt 0:00:04]} c6 {[%emt 0:08:58]} 9. Bd3 {[%emt 0:00:30]} Re8 {[%emt 0:01:35]} 10. O-O {[%emt 0:00:27]} Bd6 {[%emt 0:01:33]} 11. f3 {[%emt 0:03:33] E46: Nimzo-Indian: Rubinstein: 4 e3 0-0 5 Ne2 without early Bd3.} Qc7 {[%emt 0:24:39]} 12. h3 {[%emt 0:03:39]} Bxf4 {[%emt 0:05:02]} 13. exf4 {[%emt 0:00:13] [#] White is slightly better.} Nbd7 $146 {[%emt 0:00:32]} ({Predecessor:} 13... Bd7 14. b4 Nh5 15. Ne2 a5 16. Bd2 axb4 17. axb4 Rxa1 18. Qxa1 Na6 19. Qc3 g6 {1-0 (40) Parol,P (2085)-Zhuk,I (1959) Krakow 2017}) 14. g4 {[%emt 0:19:14]} Nf8 {[%emt 0:16:17]} 15. Ne2 {[%emt 0:09:17]} b6 {[%emt 0:10:03]} 16. Qe1 {[%emt 0:04:14]} a5 {[%emt 0:03:12]} 17. Qf2 {[%emt 0:04:58]} Ba6 {[%emt 0:00:21]} 18. Bxa6 {[%emt 0:00:59]} Rxa6 {[%emt 0:00:04]} 19. f5 {[%emt 0:01:20]} Ra7 {[%emt 0:05:12]} 20. Bd2 {[%emt 0:14:08]} Qc8 {[%emt 0:04:29]} 21. Rac1 {[%emt 0:05:46]} Qa6 {[%emt 0:00:30]} 22. Ng3 {[%emt 0:03:09]} Qb5 {[%emt 0:00:22]} 23. Bf4 {[%emt 0:04:17]} Raa8 {[%emt 0:03:24]} 24. Rc2 {[%emt 0:03:56]} Rac8 {[%emt 0:03:24]} 25. Rfc1 {[%emt 0:00:05]} N6d7 {[%emt 0:01:06]} 26. Bd6 {[%emt 0:11:28] Inhibits c5.} h6 {[%emt 0:00:14]} (26... c5 $142) 27. Kg2 {[%emt 0:04:55]} (27. b4 $142) 27... Nh7 {[%emt 0:01:01]} 28. h4 {[%emt 0:00:28]} a4 {[%emt 0:02:44]} (28... c5 $16) 29. Ne2 {[%emt 0:04:13]} c5 {[%emt 0:01:30]} 30. Nf4 {[%emt 0:00:28]} ({Weaker is} 30. dxc5 bxc5 31. Bh2 Nhf6 $11) 30... c4 {[%emt 0:01:25]} 31. Nd3 $4 {[%emt 0:01:49][%mdl 8192] [#]} Qc6 $2 {[%emt 0:02:02] [#]} (31... Rc6 $1 $19 {[%cal Rc6d6]} 32. Be5 f6) 32. Bf4 {[%emt 0:00:32]} ({White should try} 32. Qg3 $1 $16) 32... Qb7 {[%emt 0:01:57]} 33. Nb4 {[%emt 0:00:04]} Nb8 {[%emt 0:00:28]} (33... h5 $1 $14) 34. Rd1 {[%emt 0:01:28]} ({Better is} 34. Re1 $16) 34... Qd7 {[%emt 0:00:23][%cal Oh6h5]} 35. Re2 {[%emt 0:00:36]} (35. Bxb8 $16 Rxb8 36. Re1) 35... Nc6 {[%emt 0:00:37]} 36. Nxc6 {[%emt 0:00:26]} Qxc6 {[%emt 0:00:30]} 37. Bd2 {[%emt 0:00:09]} Rxe2 {[%emt 0:00:25]} 38. Qxe2 {[%emt 0:00:02]} Re8 {[%emt 0:00:21]} 39. Qf2 {[%emt 0:00:12]} Nf6 {[%emt 0:00:49]} 40. Re1 {[%emt 0:00:44]} Qd7 {[%emt 0:01:08]} 41. Rxe8+ {[%emt 0:30:59]} Qxe8 $11 {[%emt 0:02:51][%mdl 4096] Endgame KQB-KQN} 42. g5 {[%emt 0:00:00]} hxg5 {[%emt 0:11:19]} 43. hxg5 {[%emt 0:00:00]} Nd7 {[%emt 0:18:05]} 44. Kf1 {[%emt 0:00:00]} Nb8 {[%emt 0:00:00]} 45. Qh4 {[%emt 0:00:00][%cal Og5g6] Threatens to win with g6!} Nc6 {[%emt 0:00:00]} 46. Qg4 {[%emt 0:00:00]} Qd7 {[%emt 0:00:00] Hoping for ...Ne7.} 47. Qf4 {[%emt 0:00:43]} Ne7 {[%emt 0:00:00]} 48. Qb8+ $1 {[%emt 0:00:59]} Qc8 {[%emt 0:00:00]} 49. Qxc8+ {[%emt 0:03:25]} (49. Qe5 $11 {and White stays safe.} Nxf5 50. Qxd5) 49... Nxc8 {[%emt 0:03:00] KB-KN} 50. Bb4 {[%emt 0:00:00]} Na7 {[%emt 0:00:00]} 51. Bd6 $2 {[%emt 0:00:06]} (51. Ke2 {was called for.}) 51... Nb5 $19 {[%emt 0:00:00][%csl LRd4,LRd6]} 52. Be5 {[%emt 0:00:19]} (52. Bf4 Nxd4 53. Be3 Nxf5 54. Bxb6) 52... c3 {[%emt 0:00:00] Black is clearly winning.} 53. bxc3 {[%emt 0:00:21]} Nxa3 {[%emt 0:00:00] aiming for ...Nc4.} 54. Ke2 {[%emt 0:00:16]} Nc4 {[%emt 0:00:00] Quite a comeback for Black.  Weighted Error Value: White=0.57/Black=0.24 (precise)} 0-1

[Event "FRA-ch Teams Top 16-B 2022"]
[Site "Chartres"]
[Date "2022.06.10"]
[Round "2.24"]
[White "Navrotescu, Andreea"]
[Black "Ruhlmann, Helene"]
[Result "1-0"]
[ECO "A28"]
[WhiteElo "2318"]
[BlackElo "1779"]
[Annotator "TA"]
[PlyCount "80"]
[EventDate "2022.06.09"]
[EventType "team-tourn"]
[EventCountry "FRA"]
[SourceTitle "playchess.com"]
[Source "ChessBase"]
[SourceQuality "1"]
[TimeControl "40/5400+30:1800+30"]

{[%evp 11,80,7,12,8,14,6,20,14,12,0,0,0,0,0,0,-6,0,0,0,-22,0,-43,12,7,29,13,20,-1,14,0,29,30,29,8,18,1,62,17,41,30,22,23,29,-10,30,15,16,27,16,13,52,42,80,87,87,87,93,92,93,93,102,93,93,89,271,256,271,241,264,271,223]} 1. c4 {[%emt 0:00:03]} e5 {[%emt 0:00:10]} 2. Nc3 {[%emt 0:00:08]} Nf6 {[%emt 0:00:08]} 3. Nf3 {[%emt 0:00:06]} Nc6 {[%emt 0:00:12]} 4. e3 {[%emt 0:00:05]} Be7 {[%emt 0:00:42]} 5. d4 {[%emt 0:00:07]} exd4 {[%emt 0:00:26]} 6. Nxd4 {[%emt 0:00:07]} O-O {[%emt 0:00:38]} 7. Nc2 {[%emt 0:00:43] A28: English Opening: Four Knights Variation.} Bc5 {[%emt 0:08:49]} 8. Be2 {[%emt 0:01:38]} Re8 {[%emt 0:01:10]} 9. O-O {[%emt 0:00:53] The position is equal.} d6 {[%emt 0:00:44] [#]} 10. Na4 $146 {[%emt 0:01:26]} ({Predecessor:} 10. b3 a5 11. Bb2 Ne5 12. Nd4 c6 13. h3 Ng6 14. Qd3 Nh4 15. Rfd1 d5 16. cxd5 Nxd5 {½-½ (57) Banas,J (2410)-Gazik,I (2400) Hungary 1995}) 10... Qe7 {[%emt 0:09:59]} 11. Nxc5 {[%emt 0:03:03]} dxc5 {[%emt 0:00:06]} 12. f3 {[%emt 0:02:04]} Be6 {[%emt 0:06:35]} 13. Qe1 {[%emt 0:07:26]} Rad8 {[%emt 0:08:59]} 14. b3 {[%emt 0:03:35]} Bc8 {[%emt 0:07:56]} 15. Kh1 {[%emt 0:07:20]} b6 {[%emt 0:06:11]} 16. Bb2 {[%emt 0:03:54] [#]} Rd6 {[%emt 0:03:46]} (16... Nd4 $1 $15 17. Nxd4 (17. Bd3 Nxc2) 17... cxd4 18. Bxd4 (18. e4 d3 $15) 18... Rxd4 $1 19. exd4 Qxe2) 17. Rd1 $11 {[%emt 0:04:25]} Red8 {[%emt 0:00:10]} 18. Qc3 {[%emt 0:04:37]} Ne8 {[%emt 0:06:37]} 19. a3 {[%emt 0:58:20]} Rh6 {[%emt 0:03:35] And now ...Qh4 would win.} 20. g3 {[%emt 0:00:00] Prevents Qh4.} Qg5 {[%emt 0:04:22]} 21. Rxd8 {[%emt 0:00:00]} Qxd8 {[%emt 0:00:05]} 22. Rd1 {[%emt 0:00:00]} Qg5 {[%emt 0:00:10] ( -> ...Qxg3)} 23. Qe1 {[%emt 0:00:00]} a5 {[%emt 0:12:30]} (23... f5 $11) 24. Rd5 {[%emt 0:00:00]} Qe7 {[%emt 0:02:13]} 25. e4 $1 {[%emt 0:00:00] Prevents f5.} Rd6 {[%emt 0:00:40]} 26. Qd2 {[%emt 0:00:00]} Be6 {[%emt 0:02:15]} 27. Ne3 {[%emt 0:00:00]} a4 {[%emt 0:07:22]} (27... Bxd5 {feels hotter.} 28. cxd5 Rd8 29. Nf5 Qf8) 28. Rxd6 {[%emt 0:00:00]} (28. e5 {with more complications.} Rd7 29. Rxd7 Bxd7 30. Nd5) 28... Qxd6 {[%emt 0:01:04]} 29. Qxd6 {[%emt 0:00:00]} Nxd6 {[%emt 0:00:06]} 30. bxa4 {[%emt 0:00:00]} Na5 {[%emt 0:00:22][%cal Re6c4]} 31. Be5 {[%emt 0:00:00]} f6 {[%emt 0:02:45]} 32. Bxd6 {[%emt 0:00:00]} cxd6 $16 {[%emt 0:00:06][%mdl 4096] Endgame KBN-KBN} 33. Kg2 {[%emt 0:00:00]} Kf7 {[%emt 0:00:07]} 34. f4 {[%emt 0:00:00]} Ke7 {[%emt 0:02:32]} 35. Kf2 {[%emt 0:00:00]} g6 {[%emt 0:02:28]} 36. Ke1 {[%emt 0:00:00]} Nb3 {[%emt 0:00:37]} 37. Kd1 {[%emt 0:00:00]} Kd7 $2 {[%emt 0:01:10] [#] A mistake that costs the game.} (37... Bf7 $16 {was worth a try.}) 38. Bg4 $1 $18 {[%emt 0:00:00]} Na5 {[%emt 0:01:09]} 39. Bxe6+ {[%emt 0:00:00]} Kxe6 {[%emt 0:00:08]} 40. Kc2 {[%emt 0:00:00]} Nc6 {[%emt 0:00:00] Weighted Error Value: White=0.08 (flawless) /Black=0.22 (precise)} 1-0

[Event "FRA-ch Teams Top 16-B 2022"]
[Site "Chartres"]
[Date "2022.06.10"]
[Round "2.25"]
[White "Esipenko, Andrey"]
[Black "Vernay, Clovis"]
[Result "1-0"]
[ECO "C11"]
[WhiteElo "2709"]
[BlackElo "2523"]
[Annotator "TA"]
[PlyCount "49"]
[EventDate "2022.06.09"]
[EventType "team-tourn"]
[EventCountry "FRA"]
[SourceTitle "playchess.com"]
[Source "ChessBase"]
[SourceQuality "1"]
[TimeControl "40/5400+30:1800+30"]

{[%evp 13,49,0,28,22,16,16,26,26,54,37,42,27,69,67,70,67,77,81,109,115,137,127,166,129,192,168,337,330,416,375,420,413,391,411,401,404,413,314]} 1. e4 {[%emt 0:00:05][%cal Be2e4,Be4e5][%mdl 32]} e6 {[%emt 0:00:28]} 2. d4 {[%emt 0:00:10]} d5 {[%emt 0:00:09]} 3. Nc3 {[%emt 0:00:14]} Nf6 {[%emt 0:06:14]} 4. e5 {[%emt 0:00:12]} Nfd7 {[%emt 0:00:08]} 5. f4 {[%emt 0:00:09]} c5 {[%emt 0:00:06]} 6. Nf3 {[%emt 0:00:07]} Nc6 {[%emt 0:00:06]} 7. Be3 {[%emt 0:00:08]} a6 {[%emt 0:05:59]} 8. Ne2 {[%emt 0:02:01][%cal Bc3e2,Be2f4,Bf4h5][%mdl 32] C11: French: Classical System: 4 e5 and 4 Bg5 dxe4.} Qb6 {[%emt 0:07:33]} 9. Qc1 {[%emt 0:00:12] [#]} Qc7 $146 {[%emt 0:00:39]} ({Predecessor:} 9... Be7 10. c3 O-O 11. g3 a5 12. Qc2 cxd4 13. Nexd4 Nc5 14. Rb1 Bd7 15. Be2 Rac8 {½-½ (53) So,W (2770)-Nepomniachtchi,I (2792) chess24.com INT 2021}) 10. c3 {[%emt 0:02:00] White has an edge.} b6 {[%emt 0:01:34]} 11. f5 {[%emt 0:07:41]} exf5 {[%emt 1:13:04]} 12. Nf4 {[%emt 0:00:13]} Ne7 {[%emt 0:00:00]} 13. Bd3 {[%emt 0:01:38][%mdl 1024] White has compensation.} c4 {[%emt 0:00:00]} 14. Bc2 {[%emt 0:00:38]} h6 {[%emt 0:00:00]} 15. O-O {[%emt 0:12:44]} g5 {[%emt 0:00:00] [#]} 16. Nh5 {[%emt 0:01:35]} ({Much worse is} 16. e6 $6 fxe6 17. Nxe6 Qd6 18. Nxf8 Rxf8 $11) 16... Qc6 {[%emt 0:00:00]} 17. h4 {[%emt 0:10:17]} f4 {[%emt 0:00:00]} 18. Bd2 {[%emt 0:00:55]} Bb7 {[%emt 0:00:00] [#]} (18... Rg8 $16) 19. Qd1 $1 $18 {[%emt 0:02:25]} O-O-O $2 {[%emt 0:00:00]} (19... Rg8 20. Ba4 b5) 20. hxg5 {[%emt 0:00:55]} hxg5 {[%emt 0:00:00]} 21. Nxg5 {[%emt 0:00:09][%cal Bf3g5,Bg5f7,Bf7d6][%mdl 32] White is winning.} Qh6 {[%emt 0:00:00]} 22. Nxf7 {[%emt 0:00:14] Active counter play!} Qxh5 {[%emt 0:00:00]} 23. Qxh5 {[%emt 0:00:09] Really sharp!} (23. Nxh8 Qxh8 24. Rxf4 (24. Bxf4 Bh6 $18) 24... Nxe5 25. dxe5 Nc6 $16) 23... Rxh5 {[%emt 0:00:00]} 24. Bxf4 {[%emt 0:00:07]} (24. Nxd8 Kxd8 25. Bxf4 Bg7 $18) 24... Bg7 {[%emt 0:00:00]} 25. Nd6+ {[%emt 0:02:17] Weighted Error Value: White=0.04 (flawless) /Black=0.33} ({Not} 25. Nxd8 Kxd8 26. Rae1 Bc8 $18) 1-0

[Event "FRA-ch Teams Top 16-B 2022"]
[Site "Chartres"]
[Date "2022.06.10"]
[Round "2.26"]
[White "Brailly-Vignal, Bastien"]
[Black "Movsesian, Sergei"]
[Result "0-1"]
[ECO "E62"]
[WhiteElo "2372"]
[BlackElo "2600"]
[Annotator "TA"]
[PlyCount "108"]
[EventDate "2022.06.09"]
[EventType "team-tourn"]
[EventCountry "FRA"]
[SourceTitle "playchess.com"]
[Source "ChessBase"]
[SourceQuality "1"]
[TimeControl "40/5400+30:1800+30"]

{[%evp 19,108,33,52,28,24,17,25,30,38,39,36,20,28,0,0,0,12,0,0,0,2,0,0,0,21,0,0,0,0,-36,-39,-43,11,12,13,8,63,-44,-53,-53,-43,-49,-46,-55,-43,-72,-65,-97,-105,-98,-81,-108,-4,-16,0,-83,-80,-91,-96,-139,-138,-264,-295,-376,-359,-407,-370,-378,-355,-379,-364,-345,-316,-320,-320,-301,-302,-479,-473,-444,-446,-344,-285,-403,-395,-397,-368,-352,-368,-4132,-1899]} 1. d4 {[%emt 0:00:03]} Nf6 {[%emt 0:00:06]} 2. c4 {[%emt 0:00:05]} g6 {[%emt 0:00:05]} 3. Nc3 {[%emt 0:00:18]} Bg7 {[%emt 0:00:26]} 4. g3 {[%emt 0:00:23]} d6 {[%emt 0:00:26]} 5. Bg2 {[%emt 0:00:31]} O-O {[%emt 0:00:54]} 6. Nf3 {[%emt 0:00:08]} Bf5 {[%emt 0:00:35]} 7. Nh4 {[%emt 0:04:25]} Bc8 {[%emt 0:00:24]} 8. Nf3 {[%emt 0:02:36]} c6 {[%emt 0:01:24]} 9. O-O {[%emt 0:00:16]} Qb6 {[%emt 0:00:17]} 10. b3 {[%emt 0:01:59]} e5 {[%emt 0:01:04] 10...e5 was played by the boomers.} 11. dxe5 {[%emt 0:00:46] E62: King's Indian: Fianchetto: 6...c6 and Panno Variation (6...Nc6) without ...a6.} dxe5 {[%emt 0:00:31]} 12. e4 {[%emt 0:00:25]} (12. Nxe5 $2 Qa5 13. Nxf7 (13. Qd4 $2 Ng4 $19) 13... Rxf7 $19) 12... Bg4 {[%emt 0:03:45]} 13. Qc2 {[%emt 0:01:08] [#] White has an edge.} Nbd7 $146 {[%emt 0:03:48]} ({Predecessor:} 13... Bxf3 14. Bxf3 Rd8 15. Be3 Qc7 16. Rad1 Nbd7 17. Bg2 Ng4 18. Bc1 Nf8 19. Bh3 Nh6 20. Be3 f6 21. b4 Nf7 {0-1 (67) Vijayalakshmi,S (2387)-Mikkelsen,N (2425) Borup 2012}) 14. Na4 {[%emt 0:07:39]} Qc7 {[%emt 0:01:55]} 15. Be3 {[%emt 0:16:03]} Rfe8 {[%emt 0:04:15]} 16. h3 {[%emt 0:05:20]} Bxf3 {[%emt 0:02:49]} 17. Bxf3 {[%emt 0:00:07]} Nf8 {[%emt 0:03:39]} 18. Rad1 {[%emt 0:02:46]} b6 {[%emt 0:06:00][%cal Bb7b6,Bb6b5,Bb5b4][%mdl 32]} 19. Bg2 {[%emt 0:09:24]} Ne6 {[%emt 0:07:46]} 20. c5 {[%emt 0:13:28][%cal Rc5b6]} b5 {[%emt 0:08:58]} 21. Nc3 {[%emt 0:00:39][%cal Oc3d5]} Rad8 {[%emt 0:00:53] Against Nd5} 22. Ne2 {[%emt 0:01:39]} h5 {[%emt 0:07:11]} 23. f4 {[%emt 0:05:21]} Bh6 {[%emt 0:11:25]} 24. Qc3 {[%emt 0:02:22]} b4 {[%emt 0:07:32]} 25. Qc1 {[%emt 0:04:28]} Qa5 {[%emt 0:01:59]} (25... Rxd1 $15 26. Rxd1 Rd8) 26. Rd6 $1 $11 {[%emt 0:12:17]} (26. fxe5 Bxe3+ 27. Qxe3 Nd7 $15) 26... Rxd6 {[%emt 0:11:54]} 27. cxd6 {[%emt 0:00:01]} Nf8 {[%emt 0:00:27]} ({Less strong is} 27... exf4 28. Nxf4 (28. gxf4 Nd8 $18) 28... Bg5 29. Qxc6 $18 (29. Nxg6 fxg6 30. Bxg5 Qxg5 $16)) (27... Qb5 $11 28. f5 (28. fxe5 Bxe3+ 29. Qxe3 Qxe5 $11) 28... Bxe3+ 29. Qxe3 Qc5 30. Qxc5 Nxc5) 28. fxe5 {[%emt 0:04:07]} ({White should try} 28. Qxc6 $14 N8d7 29. Qc2) 28... Bxe3+ $15 {[%emt 0:00:13]} 29. Qxe3 {[%emt 0:00:02]} N6d7 {[%emt 0:02:11]} 30. Qd2 {[%emt 0:02:15]} Nxe5 {[%emt 0:01:01]} 31. Rd1 {[%emt 0:01:00]} Nfd7 {[%emt 0:00:52]} 32. Nf4 {[%emt 0:00:30] Prevents Re6.} Qc5+ {[%emt 0:03:28]} 33. Kh2 {[%emt 0:00:20]} a5 {[%emt 0:00:40]} 34. Rc1 {[%emt 0:00:39]} Qb6 {[%emt 0:00:15]} 35. Rd1 {[%emt 0:00:28]} Nf6 {[%emt 0:01:35] Pair of Knights!} (35... Kg7 $17) 36. Nd3 $11 {[%emt 0:01:49]} Nfd7 {[%emt 0:01:14]} (36... Nxd3 $11 37. Qxd3 Nd7) 37. Nf4 $17 {[%emt 0:00:05]} Rd8 {[%emt 0:01:58] Black keeps a firm grip on the game.} 38. Rc1 {[%emt 0:01:07]} Ra8 {[%emt 0:01:19][%cal Bd8a8,Ba8a4,Ba4a3][%mdl 32]} 39. Rb1 {[%emt 0:01:15]} a4 {[%emt 0:01:20]} 40. bxa4 {[%emt 0:01:45]} (40. Rd1 $17) 40... Rxa4 $19 {[%emt 0:00:07]} 41. Rf1 {[%emt 0:11:11]} Ra3 {[%emt 0:08:19]} 42. Rf2 {[%emt 0:12:38]} b3 {[%emt 0:09:12]} 43. axb3 {[%emt 0:00:13]} Qxb3 {[%emt 0:00:10]} 44. Ne2 {[%emt 0:02:35]} Ra2 {[%emt 0:00:56]} 45. Qf4 {[%emt 0:01:25]} Qa3 {[%emt 0:01:44]} 46. Nd4 {[%emt 0:02:27][%cal Od4c6]} Rxf2 47. Qxf2 {[%emt 0:00:01]} Qxd6 {[%emt 0:00:22]} 48. Nc2 {[%emt 0:00:36]} (48. Kg1 $142) 48... h4 {[%emt 0:02:06]} 49. Qf4 {[%emt 0:00:49]} hxg3+ {[%emt 0:01:12]} 50. Qxg3 {[%emt 0:00:06]} Nf6 {[%emt 0:00:17]} 51. Kh1 {[%emt 0:01:05]} (51. Kg1 {was forced.}) 51... Nh5 {[%emt 0:00:44]} 52. Qc3 {[%emt 0:00:54]} Nd3 {[%emt 0:01:09] ( -> ...Ng3+)} 53. e5 {[%emt 0:00:52]} Nxe5 {[%emt 0:00:23][%cal Oe5g4] aiming for ...Ng4!} 54. Nb4 $2 {[%emt 0:00:50] [#]} (54. Qd4 Qf6 55. Qe3) 54... Ng4 $1 {[%emt 0:02:51][%mdl 512] Weighted Error Value: White=0.41/Black=0.14 (very precise)} 0-1

[Event "FRA-ch Teams Top 16-B 2022"]
[Site "Chartres"]
[Date "2022.06.10"]
[Round "2.27"]
[White "Moussard, Jules"]
[Black "Marzolo, Cyril"]
[Result "1-0"]
[ECO "C43"]
[WhiteElo "2651"]
[BlackElo "2376"]
[Annotator "TA"]
[PlyCount "79"]
[EventDate "2022.06.09"]
[EventType "team-tourn"]
[EventCountry "FRA"]
[SourceTitle "playchess.com"]
[Source "ChessBase"]
[SourceQuality "1"]
[TimeControl "40/5400+30:1800+30"]

{[%evp 9,79,0,20,7,3,11,12,6,13,6,10,6,29,-7,-4,-20,-37,-2,37,43,39,37,129,103,152,138,155,145,147,140,155,155,147,153,154,153,128,137,149,97,104,50,36,38,43,38,39,45,39,31,36,30,76,76,76,76,76,76,76,76,76,76,76,76,91,91,91,91,29973,29974,29974,29975]} 1. e4 {[%emt 0:00:04]} e5 {[%emt 0:06:03]} 2. Nf3 {[%emt 0:00:16]} Nf6 {[%emt 0:00:08]} 3. d4 {[%emt 0:02:58]} Nxe4 {[%emt 0:00:22]} 4. dxe5 {[%emt 0:02:32]} d5 {[%emt 0:00:08]} 5. Nbd2 {[%emt 0:00:24]} Nxd2 {[%emt 0:00:37]} 6. Bxd2 {[%emt 0:00:43] C43: Petroff Defence: 3 d4.} Be7 {[%emt 0:00:13]} 7. Bd3 {[%emt 0:00:52]} c5 {[%emt 0:00:19]} 8. c3 {[%emt 0:01:19] The position is equal.} Nc6 {[%emt 0:00:05]} 9. O-O {[%emt 0:00:39]} Be6 {[%emt 0:01:11]} 10. Re1 {[%emt 0:03:44]} h6 {[%emt 0:07:37] [#]} 11. Qa4 $146 {[%emt 0:10:09]} ({Predecessor:} 11. Qc2) 11... a6 {[%emt 0:05:42]} 12. Rad1 {[%emt 0:08:32]} Qd7 {[%emt 0:06:11][%cal Oc6e5]} 13. Qc2 {[%emt 0:08:40]} O-O-O {[%emt 0:40:55]} 14. b4 {[%emt 0:03:38]} c4 {[%emt 0:02:16]} 15. Be2 {[%emt 0:03:10]} d4 {[%emt 0:05:22]} (15... g5 $14) 16. cxd4 {[%emt 0:01:12]} Nxd4 {[%emt 0:04:31]} (16... b5 $142) 17. Nxd4 $16 {[%emt 0:00:17]} Qxd4 {[%emt 0:00:04]} 18. Be3 $1 {[%emt 0:02:35]} Qxe5 {[%emt 0:00:33]} 19. Bxc4 {[%emt 0:00:09]} Qc7 {[%emt 0:09:44]} 20. Bxe6+ {[%emt 0:00:24]} fxe6 {[%emt 0:00:06]} 21. Qe2 {[%emt 0:08:17] And now Rc1 would win.} Rxd1 {[%emt 0:03:27]} 22. Rxd1 {[%emt 0:00:04]} Kb8 {[%emt 0:00:19]} 23. b5 {[%emt 0:04:27]} axb5 {[%emt 0:01:34] [#]} 24. Qxb5 {[%emt 0:01:17]} (24. Rc1 $142 $1 Qa5 25. Bf4+ Ka7 26. Qxe6) 24... Rd8 {[%emt 0:01:34]} 25. Rb1 {[%emt 0:00:03] White is more active.} ({White should try} 25. Rf1 $16) 25... Rd5 $1 $14 {[%emt 0:00:36]} 26. Qb3 {[%emt 0:01:25]} Bc5 {[%emt 0:00:46] [#]} 27. Bf4 $1 {[%emt 0:06:00][%csl Gb1][%cal Rb3b7]} Bd6 {[%emt 0:00:08]} 28. Bxd6 {[%emt 0:00:32]} Rxd6 {[%emt 0:00:05][%mdl 4096] Endgame KQR-KQR} 29. h4 {[%emt 0:00:11]} Rc6 {[%emt 0:00:38]} 30. Qe3 {[%emt 0:00:18]} Rc3 {[%emt 0:01:55]} (30... Rc4 $11) 31. Qxe6 $16 {[%emt 0:01:09]} Rc1+ {[%emt 0:00:42]} 32. Rxc1 {[%emt 0:00:04]} Qxc1+ {[%emt 0:00:03] KQ-KQ} 33. Kh2 {[%emt 0:00:02] aiming for Qg8+.} Qf4+ {[%emt 0:00:37]} 34. Kh3 {[%emt 0:00:06] Qg8+ is the strong threat.} Qxf2 {[%emt 0:01:03]} 35. Qe5+ {[%emt 0:00:25]} Ka7 {[%emt 0:00:11]} 36. Qxg7 {[%emt 0:00:34]} h5 {[%emt 0:00:58]} 37. Qe5 {[%emt 0:01:40] Strongly threatening Qa5+.} Qf7 {[%emt 0:00:17]} 38. Qd4+ {[%emt 0:01:38]} Ka6 $2 {[%emt 0:00:15][%mdl 8192]} (38... b6 $16) 39. Qa4+ {[%emt 0:00:20]} Kb6 {[%emt 0:00:08] [#]} 40. Qb3+ $1 {[%emt 0:00:12] Weighted Error Value: White=0.06 (flawless) /Black=0.31} 1-0